[Event "Titled Tuesday Blitz October 04 Early 2022"]
[White "Jones, Gawain C B"]
[Black "Lazavik, Denis"]
[WhiteFideId "409561"]
[BlackFideId "13515110"]
[WhiteElo "2657"]
[BlackElo "2437"]
[Result "0-1"]
[Round "10"]
[TimeControl "180+1"]
[Date "2022.10.04"]
[WhiteClock "0:00:01"]
[BlackClock "0:00:44"]

1. Nf3 {[%clk 0:03:00]}  d5 {[%clk 0:02:59]} 2. g3 {[%clk 0:03:01]}  g6 {[%clk 0:02:59]} 3. Bg2 {[%clk 0:02:59]}  Bg7 {[%clk 0:02:59]} 4. O-O {[%clk 0:03:00]}  e5 {[%clk 0:02:58]} 5. d3 {[%clk 0:03:00]}  Ne7 {[%clk 0:02:58]} 6. c4 {[%clk 0:03:00]}  O-O {[%clk 0:02:53]} 7. cxd5 {[%clk 0:02:59]}  Nxd5 {[%clk 0:02:53]} 8. Nc3 {[%clk 0:02:59]}  Ne7 {[%clk 0:02:51]} 9. Rb1 {[%clk 0:02:46]}  a5 {[%clk 0:02:48]} 10. b3 {[%clk 0:02:43]}  Nbc6 {[%clk 0:02:48]} 11. Bb2 {[%clk 0:02:43]}  h6 {[%clk 0:02:45]} 12. Nb5 {[%clk 0:02:36]}  Be6 {[%clk 0:02:42]} 13. Nd2 {[%clk 0:02:35]}  Qd7 {[%clk 0:02:40]} 14. a3 {[%clk 0:02:28]}  Rac8 {[%clk 0:02:27]} 15. Nc4 {[%clk 0:02:26]}  Bh3 {[%clk 0:02:23]} 16. Bxh3 {[%clk 0:02:19]}  Qxh3 {[%clk 0:02:22]} 17. e4 {[%clk 0:02:20]}  f5 {[%clk 0:02:10]} 18. exf5 {[%clk 0:02:08]}  Nxf5 {[%clk 0:02:10]} 19. Qe2 {[%clk 0:02:01]}  Nfd4 {[%clk 0:01:42]} 20. Bxd4 {[%clk 0:01:59]}  exd4 {[%clk 0:01:41]} 21. Rbe1 {[%clk 0:01:56]}  Kh7 {[%clk 0:01:36]} 22. Qe6 {[%clk 0:01:51]}  Qh5 {[%clk 0:01:35]} 23. f4 {[%clk 0:01:46]}  Qxb5 {[%clk 0:01:32]} 24. f5 {[%clk 0:01:38]}  gxf5 {[%clk 0:01:25]} 25. a4 {[%clk 0:01:31]}  Qc5 {[%clk 0:01:24]} 26. Qd7 {[%clk 0:01:11]}  Nb8 {[%clk 0:01:21]} 27. Qe6 {[%clk 0:01:11]}  Rce8 {[%clk 0:01:10]} 28. Qxe8 {[%clk 0:01:11]}  Rxe8 {[%clk 0:01:11]} 29. Rxe8 {[%clk 0:01:10]}  Nc6 {[%clk 0:01:09]} 30. Ra8 {[%clk 0:00:46]}  b6 {[%clk 0:01:01]} 31. Re1 {[%clk 0:00:34]}  Qd5 {[%clk 0:01:01]} 32. Rc8 {[%clk 0:00:31]}  Qd7 {[%clk 0:01:00]} 33. Rce8 {[%clk 0:00:31]}  f4 {[%clk 0:00:58]} 34. R8e4 {[%clk 0:00:29]}  fxg3 {[%clk 0:00:55]} 35. hxg3 {[%clk 0:00:29]}  Qh3 {[%clk 0:00:55]} 36. Kf2 {[%clk 0:00:28]}  Nb4 {[%clk 0:00:55]} 37. Rd1 {[%clk 0:00:21]}  Nxd3+ {[%clk 0:00:52]} 38. Ke2 {[%clk 0:00:13]}  Nc5 {[%clk 0:00:52]} 39. Rf4 {[%clk 0:00:11]}  Qg2+ {[%clk 0:00:50]} 40. Rf2 {[%clk 0:00:10]}  d3+ {[%clk 0:00:50]} 41. Rxd3 {[%clk 0:00:10]}  Qxf2+ {[%clk 0:00:48]} 42. Kxf2 {[%clk 0:00:10]}  Nxd3+ {[%clk 0:00:49]} 43. Ke3 {[%clk 0:00:06]}  Nc5 {[%clk 0:00:49]} 44. Nd2 {[%clk 0:00:03]}  Bc3 {[%clk 0:00:49]} 45. Nf3 {[%clk 0:00:03]}  Nxb3 {[%clk 0:00:49]} 46. Kd3 {[%clk 0:00:04]}  Bf6 {[%clk 0:00:49]} 47. Kc4 {[%clk 0:00:04]}  Nc5 {[%clk 0:00:50]} 48. Kb5 {[%clk 0:00:05]}  Kg6 {[%clk 0:00:49]} 49. Nd2 {[%clk 0:00:03]}  Be5 {[%clk 0:00:48]} 50. g4 {[%clk 0:00:03]}  Bd6 {[%clk 0:00:48]} 51. Nf3 {[%clk 0:00:03]}  Ne4 {[%clk 0:00:48]} 52. Kc4 {[%clk 0:00:02]}  Nf6 {[%clk 0:00:44]} 53. Nd4 {[%clk 0:00:01]}  Nxg4 {[%clk 0:00:44]} 54. Kd3 {[%clk 0:00:01]}  Nf6 {[%clk 0:00:44]} 0-1


[Site "https://www.chess.com"]

[Event "Titled Tuesday Blitz October 04 Early 2022"]
[White "Kamsky, Gata"]
[Black "Gabrielian, Artur"]
[WhiteFideId "2000024"]
[BlackFideId "4131002"]
[WhiteElo "2666"]
[BlackElo "2432"]
[Result "1-0"]
[Round "10"]
[TimeControl "180+1"]
[Date "2022.10.04"]
[WhiteClock "0:00:21"]
[BlackClock "0:00:02"]

1. d4 {[%clk 0:03:00]}  Nf6 {[%clk 0:02:58]} 2. Nf3 {[%clk 0:02:59]}  g6 {[%clk 0:02:58]} 3. Bg5 {[%clk 0:02:58]}  Bg7 {[%clk 0:02:58]} 4. c3 {[%clk 0:02:59]}  O-O {[%clk 0:02:57]} 5. Nbd2 {[%clk 0:02:59]}  d5 {[%clk 0:02:52]} 6. e3 {[%clk 0:02:59]}  Nbd7 {[%clk 0:02:51]} 7. Be2 {[%clk 0:02:59]}  Re8 {[%clk 0:02:49]} 8. O-O {[%clk 0:02:59]}  c6 {[%clk 0:02:49]} 9. b4 {[%clk 0:02:58]}  e5 {[%clk 0:02:47]} 10. Bh4 {[%clk 0:02:57]}  Qc7 {[%clk 0:02:23]} 11. Rc1 {[%clk 0:02:48]}  Nh5 {[%clk 0:02:04]} 12. a4 {[%clk 0:02:21]}  exd4 {[%clk 0:01:45]} 13. cxd4 {[%clk 0:02:13]}  Qd6 {[%clk 0:01:42]} 14. b5 {[%clk 0:02:09]}  c5 {[%clk 0:01:42]} 15. dxc5 {[%clk 0:02:01]}  Nxc5 {[%clk 0:01:40]} 16. Nc4 {[%clk 0:02:00]}  Qe6 {[%clk 0:00:58]} 17. Nd4 {[%clk 0:01:58]}  Bxd4 {[%clk 0:00:49]} 18. exd4 {[%clk 0:01:03]}  Qxe2 {[%clk 0:00:39]} 19. Nd6 {[%clk 0:01:02]}  Qxd1 {[%clk 0:00:23]} 20. Rfxd1 {[%clk 0:00:56]}  Re4 {[%clk 0:00:13]} 21. Rxc5 {[%clk 0:00:54]}  Rxh4 {[%clk 0:00:13]} 22. Rxc8+ {[%clk 0:00:53]}  Rxc8 {[%clk 0:00:12]} 23. Nxc8 {[%clk 0:00:53]}  a6 {[%clk 0:00:10]} 24. Ne7+ {[%clk 0:00:53]}  Kf8 {[%clk 0:00:09]} 25. Nxd5 {[%clk 0:00:49]}  axb5 {[%clk 0:00:09]} 26. axb5 {[%clk 0:00:48]}  Re4 {[%clk 0:00:08]} 27. g3 {[%clk 0:00:45]}  Re2 {[%clk 0:00:07]} 28. b6 {[%clk 0:00:31]}  Rb2 {[%clk 0:00:06]} 29. Rc1 {[%clk 0:00:29]}  Kg7 {[%clk 0:00:05]} 30. Rc7 {[%clk 0:00:27]}  Rb5 {[%clk 0:00:05]} 31. Rd7 {[%clk 0:00:27]}  g5 {[%clk 0:00:03]} 32. g4 {[%clk 0:00:25]}  Nf4 {[%clk 0:00:03]} 33. Nxf4 {[%clk 0:00:25]}  gxf4 {[%clk 0:00:04]} 34. Rxb7 {[%clk 0:00:25]}  f3 {[%clk 0:00:04]} 35. h3 {[%clk 0:00:25]}  Rb2 {[%clk 0:00:05]} 36. Rb8 {[%clk 0:00:23]}  Kf6 {[%clk 0:00:05]} 37. b7 {[%clk 0:00:21]}  Ke7 {[%clk 0:00:05]} 38. Kh2 {[%clk 0:00:20]}  Rxf2+ {[%clk 0:00:05]} 39. Kg3 {[%clk 0:00:21]}  Rb2 {[%clk 0:00:05]} 40. Kxf3 {[%clk 0:00:21]}  Rb3+ {[%clk 0:00:02]} 41. Kf4 {[%clk 0:00:21]} 1-0


[Site "https://www.chess.com"]

[Event "Titled Tuesday Blitz October 04 Early 2022"]
[White "Leiva, Gianmarco"]
[Black "Salinas Herrera, Pablo"]
[WhiteFideId "3804399"]
[BlackFideId "3407128"]
[WhiteElo "2285"]
[BlackElo "2550"]
[Result "0-1"]
[Round "10"]
[TimeControl "180+1"]
[Date "2022.10.04"]
[WhiteClock "0:00:01"]
[BlackClock "0:00:12"]

1. e4 {[%clk 0:03:00]}  c5 {[%clk 0:02:59]} 2. Nf3 {[%clk 0:03:00]}  e6 {[%clk 0:03:00]} 3. d3 {[%clk 0:02:59]}  g6 {[%clk 0:02:59]} 4. g3 {[%clk 0:02:58]}  Bg7 {[%clk 0:02:59]} 5. Bg2 {[%clk 0:02:59]}  Nc6 {[%clk 0:03:00]} 6. O-O {[%clk 0:02:58]}  Nge7 {[%clk 0:03:01]} 7. c3 {[%clk 0:02:59]}  e5 {[%clk 0:03:00]} 8. a3 {[%clk 0:02:56]}  O-O {[%clk 0:02:59]} 9. b4 {[%clk 0:02:56]}  d6 {[%clk 0:03:00]} 10. Nbd2 {[%clk 0:02:48]}  a6 {[%clk 0:03:00]} 11. Bb2 {[%clk 0:02:48]}  h6 {[%clk 0:02:59]} 12. Nb3 {[%clk 0:02:33]}  b6 {[%clk 0:02:57]} 13. d4 {[%clk 0:02:34]}  exd4 {[%clk 0:02:56]} 14. cxd4 {[%clk 0:02:34]}  c4 {[%clk 0:02:56]} 15. Nbd2 {[%clk 0:02:34]}  b5 {[%clk 0:02:54]} 16. Bc3 {[%clk 0:02:22]}  d5 {[%clk 0:02:53]} 17. e5 {[%clk 0:02:22]}  a5 {[%clk 0:02:32]} 18. bxa5 {[%clk 0:02:19]}  Nxa5 {[%clk 0:02:32]} 19. Bb4 {[%clk 0:02:17]}  Nac6 {[%clk 0:02:31]} 20. Bc5 {[%clk 0:02:18]}  Re8 {[%clk 0:02:23]} 21. Ne1 {[%clk 0:02:17]}  Nf5 {[%clk 0:02:00]} 22. Nc2 {[%clk 0:02:17]}  Be6 {[%clk 0:01:50]} 23. Nb1 {[%clk 0:02:03]}  Rc8 {[%clk 0:01:14]} 24. f4 {[%clk 0:02:02]}  f6 {[%clk 0:01:02]} 25. Nc3 {[%clk 0:00:40]}  Na5 {[%clk 0:00:45]} 26. Rb1 {[%clk 0:00:19]}  Nb3 {[%clk 0:00:45]} 27. Rxb3 {[%clk 0:00:18]}  cxb3 {[%clk 0:00:46]} 28. Nb4 {[%clk 0:00:17]}  fxe5 {[%clk 0:00:46]} 29. fxe5 {[%clk 0:00:16]}  Ne3 {[%clk 0:00:42]} 30. Qxb3 {[%clk 0:00:15]}  Rxc5 {[%clk 0:00:29]} 31. dxc5 {[%clk 0:00:14]}  d4 {[%clk 0:00:30]} 32. Ncd5 {[%clk 0:00:12]}  Nxf1 {[%clk 0:00:25]} 33. Kxf1 {[%clk 0:00:11]}  Bxe5 {[%clk 0:00:24]} 34. Qd3 {[%clk 0:00:11]}  Qg5 {[%clk 0:00:22]} 35. Nc6 {[%clk 0:00:07]}  Qc1+ {[%clk 0:00:18]} 36. Kf2 {[%clk 0:00:05]}  Rf8+ {[%clk 0:00:18]} 37. Nf4 {[%clk 0:00:04]}  Bf5 {[%clk 0:00:16]} 38. Qb3+ {[%clk 0:00:04]}  Kh7 {[%clk 0:00:13]} 39. Nxe5 {[%clk 0:00:04]}  Qxc5 {[%clk 0:00:12]} 40. Nf3 {[%clk 0:00:02]}  d3+ {[%clk 0:00:12]} 41. Ke1 {[%clk 0:00:01]}  Qe3+ {[%clk 0:00:12]} 0-1


[Site "https://www.chess.com"]

[Event "Titled Tuesday Blitz October 04 Early 2022"]
[White "Nakamura, Hikaru"]
[Black "Martinez Alcantara, Jose Eduardo"]
[WhiteFideId "2016192"]
[BlackFideId "3805662"]
[WhiteElo "2909"]
[BlackElo "2703"]
[Result "1-0"]
[Round "10"]
[TimeControl "180+1"]
[Date "2022.10.04"]
[WhiteClock "0:00:14"]
[BlackClock "0:00:03"]

1. Nf3 {[%clk 0:03:00]}  d5 {[%clk 0:02:59]} 2. e3 {[%clk 0:03:01]}  Nf6 {[%clk 0:02:59]} 3. c4 {[%clk 0:03:01]}  c6 {[%clk 0:02:59]} 4. d4 {[%clk 0:03:01]}  Bg4 {[%clk 0:02:54]} 5. h3 {[%clk 0:03:00]}  Bxf3 {[%clk 0:02:54]} 6. Qxf3 {[%clk 0:03:00]}  e6 {[%clk 0:02:53]} 7. Nc3 {[%clk 0:03:01]}  Nbd7 {[%clk 0:02:53]} 8. Bd3 {[%clk 0:02:58]}  g6 {[%clk 0:02:52]} 9. O-O {[%clk 0:02:56]}  Bg7 {[%clk 0:02:52]} 10. Rd1 {[%clk 0:02:54]}  O-O {[%clk 0:02:52]} 11. Qe2 {[%clk 0:02:54]}  Qe7 {[%clk 0:02:49]} 12. Qc2 {[%clk 0:02:54]}  Rac8 {[%clk 0:02:39]} 13. Qb3 {[%clk 0:02:45]}  Rb8 {[%clk 0:02:34]} 14. Bf1 {[%clk 0:02:45]}  a6 {[%clk 0:02:33]} 15. Qc2 {[%clk 0:02:45]}  dxc4 {[%clk 0:02:30]} 16. Bxc4 {[%clk 0:02:43]}  b5 {[%clk 0:02:31]} 17. Bf1 {[%clk 0:02:41]}  c5 {[%clk 0:02:31]} 18. dxc5 {[%clk 0:02:41]}  Nxc5 {[%clk 0:02:28]} 19. Bd2 {[%clk 0:02:40]}  Rfc8 {[%clk 0:02:20]} 20. Qb1 {[%clk 0:02:33]}  Nfd7 {[%clk 0:02:12]} 21. Be1 {[%clk 0:02:17]}  Nb6 {[%clk 0:02:11]} 22. Ne2 {[%clk 0:01:52]}  Nca4 {[%clk 0:02:02]} 23. b3 {[%clk 0:01:39]}  Nc3 {[%clk 0:01:58]} 24. Nxc3 {[%clk 0:01:35]}  Bxc3 {[%clk 0:01:59]} 25. Bxc3 {[%clk 0:01:35]}  Rxc3 {[%clk 0:01:59]} 26. Qe4 {[%clk 0:01:35]}  Rbc8 {[%clk 0:01:47]} 27. g3 {[%clk 0:01:28]}  Qf6 {[%clk 0:01:47]} 28. Bg2 {[%clk 0:01:26]}  Rc2 {[%clk 0:01:43]} 29. Qf4 {[%clk 0:00:56]}  Qxf4 {[%clk 0:01:31]} 30. gxf4 {[%clk 0:00:57]}  Rb2 {[%clk 0:01:31]} 31. Rd6 {[%clk 0:00:55]}  Nd5 {[%clk 0:01:30]} 32. f5 {[%clk 0:00:43]}  gxf5 {[%clk 0:01:23]} 33. Bxd5 {[%clk 0:00:43]}  exd5 {[%clk 0:01:24]} 34. Rxa6 {[%clk 0:00:44]}  Rcc2 {[%clk 0:01:22]} 35. Rf1 {[%clk 0:00:44]}  Rd2 {[%clk 0:01:07]} 36. Rb6 {[%clk 0:00:40]}  Rxa2 {[%clk 0:01:07]} 37. Rxb5 {[%clk 0:00:41]}  Rab2 {[%clk 0:01:06]} 38. Rb4 {[%clk 0:00:40]}  Kg7 {[%clk 0:01:04]} 39. Kg2 {[%clk 0:00:40]}  Kf6 {[%clk 0:00:58]} 40. Rb6+ {[%clk 0:00:38]}  Ke5 {[%clk 0:00:56]} 41. Rb7 {[%clk 0:00:37]}  Ke6 {[%clk 0:00:55]} 42. b4 {[%clk 0:00:35]}  h5 {[%clk 0:00:45]} 43. Kf3 {[%clk 0:00:31]}  Kf6 {[%clk 0:00:31]} 44. b5 {[%clk 0:00:27]}  d4 {[%clk 0:00:31]} 45. Rb6+ {[%clk 0:00:26]}  Ke7 {[%clk 0:00:25]} 46. exd4 {[%clk 0:00:24]}  Rxd4 {[%clk 0:00:26]} 47. Ra1 {[%clk 0:00:21]}  Rb3+ {[%clk 0:00:21]} 48. Kg2 {[%clk 0:00:20]}  f4 {[%clk 0:00:15]} 49. Ra7+ {[%clk 0:00:19]}  Kf8 {[%clk 0:00:14]} 50. Rf6 {[%clk 0:00:18]}  Rxb5 {[%clk 0:00:12]} 51. Rfxf7+ {[%clk 0:00:17]}  Kg8 {[%clk 0:00:12]} 52. Rg7+ {[%clk 0:00:17]}  Kh8 {[%clk 0:00:10]} 53. h4 {[%clk 0:00:16]}  f3+ {[%clk 0:00:10]} 54. Kh3 {[%clk 0:00:16]}  Rb1 {[%clk 0:00:09]} 55. Rh7+ {[%clk 0:00:14]}  Kg8 {[%clk 0:00:09]} 56. Rxh5 {[%clk 0:00:14]}  Rh1+ {[%clk 0:00:03]} 57. Kg3 {[%clk 0:00:15]}  Rd3 {[%clk 0:00:04]} 58. Rb5 {[%clk 0:00:13]}  Rg1+ {[%clk 0:00:04]} 59. Kf4 {[%clk 0:00:13]}  Rd8 {[%clk 0:00:03]} 60. Rg5+ {[%clk 0:00:13]}  Rxg5 {[%clk 0:00:03]} 61. hxg5 {[%clk 0:00:14]}  Rf8+ {[%clk 0:00:03]} 62. Kg4 {[%clk 0:00:14]} 1-0


[Site "https://www.chess.com"]

[Event "Titled Tuesday Blitz October 04 Early 2022"]
[White "Omelja, Artem"]
[Black "Makhnev, Denis"]
[WhiteFideId "14119846"]
[BlackFideId "13707647"]
[WhiteElo "2403"]
[BlackElo "2486"]
[Result "0-1"]
[Round "10"]
[TimeControl "180+1"]
[Date "2022.10.04"]
[WhiteClock "0:00:02"]
[BlackClock "0:01:05"]

1. d4 {[%clk 0:03:00]}  Nf6 {[%clk 0:02:59]} 2. c4 {[%clk 0:03:00]}  e6 {[%clk 0:02:59]} 3. Nf3 {[%clk 0:03:00]}  b6 {[%clk 0:02:59]} 4. a3 {[%clk 0:02:59]}  Bb7 {[%clk 0:02:55]} 5. Nc3 {[%clk 0:02:58]}  d5 {[%clk 0:02:56]} 6. Bg5 {[%clk 0:02:55]}  Nbd7 {[%clk 0:02:54]} 7. e3 {[%clk 0:02:55]}  a6 {[%clk 0:02:49]} 8. cxd5 {[%clk 0:02:39]}  exd5 {[%clk 0:02:49]} 9. Bd3 {[%clk 0:02:39]}  Bd6 {[%clk 0:02:48]} 10. O-O {[%clk 0:02:34]}  O-O {[%clk 0:02:47]} 11. Rc1 {[%clk 0:02:34]}  h6 {[%clk 0:02:47]} 12. Bh4 {[%clk 0:02:32]}  Re8 {[%clk 0:02:46]} 13. Qc2 {[%clk 0:02:13]}  c5 {[%clk 0:02:40]} 14. Qb1 {[%clk 0:02:05]}  c4 {[%clk 0:02:39]} 15. Bf5 {[%clk 0:02:04]}  g5 {[%clk 0:02:28]} 16. Bg3 {[%clk 0:02:02]}  Bxg3 {[%clk 0:02:28]} 17. hxg3 {[%clk 0:02:01]}  b5 {[%clk 0:02:28]} 18. e4 {[%clk 0:01:57]}  Nxe4 {[%clk 0:02:12]} 19. Bxd7 {[%clk 0:01:12]}  Qxd7 {[%clk 0:02:12]} 20. Ne5 {[%clk 0:01:12]}  Qe6 {[%clk 0:02:11]} 21. Rfe1 {[%clk 0:01:07]}  f6 {[%clk 0:02:09]} 22. Nf3 {[%clk 0:00:56]}  Kg7 {[%clk 0:02:08]} 23. Qc2 {[%clk 0:00:50]}  Qf7 {[%clk 0:02:06]} 24. Re3 {[%clk 0:00:49]}  Nd6 {[%clk 0:02:03]} 25. Rce1 {[%clk 0:00:48]}  Rxe3 {[%clk 0:02:03]} 26. Rxe3 {[%clk 0:00:49]}  Re8 {[%clk 0:02:03]} 27. Ne2 {[%clk 0:00:41]}  Rxe3 {[%clk 0:02:02]} 28. fxe3 {[%clk 0:00:42]}  Qe6 {[%clk 0:02:01]} 29. Qc1 {[%clk 0:00:39]}  Bc6 {[%clk 0:02:00]} 30. Nh2 {[%clk 0:00:34]}  Be8 {[%clk 0:01:59]} 31. g4 {[%clk 0:00:34]}  h5 {[%clk 0:01:56]} 32. gxh5 {[%clk 0:00:33]}  Bxh5 {[%clk 0:01:56]} 33. Ng3 {[%clk 0:00:34]}  Bg6 {[%clk 0:01:56]} 34. Kf2 {[%clk 0:00:33]}  a5 {[%clk 0:01:38]} 35. Nf3 {[%clk 0:00:26]}  b4 {[%clk 0:01:23]} 36. axb4 {[%clk 0:00:27]}  axb4 {[%clk 0:01:24]} 37. Qa1 {[%clk 0:00:27]}  c3 {[%clk 0:01:18]} 38. bxc3 {[%clk 0:00:26]}  Nc4 {[%clk 0:01:18]} 39. Nf1 {[%clk 0:00:06]}  b3 {[%clk 0:01:19]} 40. N3d2 {[%clk 0:00:05]}  b2 {[%clk 0:01:17]} 41. Qa7+ {[%clk 0:00:04]}  Kh6 {[%clk 0:01:17]} 42. Qb8 {[%clk 0:00:02]}  Kg7 {[%clk 0:01:06]} 43. Qb7+ {[%clk 0:00:02]}  Qf7 {[%clk 0:01:07]} 44. Qb8 {[%clk 0:00:02]}  Qd7 {[%clk 0:01:06]} 45. Nxc4 {[%clk 0:00:02]}  b1=Q {[%clk 0:01:05]} 0-1


[Site "https://www.chess.com"]

[Event "Titled Tuesday Blitz October 04 Early 2022"]
[White "Rozman, Levy"]
[Black "Kosakowski, Jakub"]
[WhiteFideId "2039877"]
[BlackFideId "1185080"]
[WhiteElo "2376"]
[BlackElo "2463"]
[Result "0-1"]
[Round "10"]
[TimeControl "180+1"]
[Date "2022.10.04"]
[WhiteClock "0:00:18"]
[BlackClock "0:01:57"]

1. e4 {[%clk 0:03:00]}  c6 {[%clk 0:02:58]} 2. d4 {[%clk 0:03:01]}  d5 {[%clk 0:02:58]} 3. e5 {[%clk 0:03:01]}  Bf5 {[%clk 0:02:58]} 4. h4 {[%clk 0:03:01]}  h5 {[%clk 0:02:58]} 5. Bg5 {[%clk 0:03:02]}  Qb6 {[%clk 0:02:58]} 6. Bd3 {[%clk 0:03:02]}  Qxd4 {[%clk 0:02:53]} 7. Nf3 {[%clk 0:03:02]}  Qg4 {[%clk 0:02:53]} 8. Bxf5 {[%clk 0:03:02]}  Qxf5 {[%clk 0:02:53]} 9. c4 {[%clk 0:03:03]}  dxc4 {[%clk 0:02:43]} 10. O-O {[%clk 0:02:52]}  Nd7 {[%clk 0:02:42]} 11. Re1 {[%clk 0:02:18]}  e6 {[%clk 0:02:33]} 12. Nbd2 {[%clk 0:02:10]}  Ne7 {[%clk 0:02:18]} 13. Nxc4 {[%clk 0:02:02]}  Nd5 {[%clk 0:02:18]} 14. Nd4 {[%clk 0:01:47]}  Qg4 {[%clk 0:02:08]} 15. Qd3 {[%clk 0:00:52]}  Nc5 {[%clk 0:02:06]} 16. Qd2 {[%clk 0:00:48]}  Ne4 {[%clk 0:02:02]} 17. Rxe4 {[%clk 0:00:43]}  Qxe4 {[%clk 0:02:02]} 18. Re1 {[%clk 0:00:42]}  Qg6 {[%clk 0:02:01]} 19. Qa5 {[%clk 0:00:38]}  Bb4 {[%clk 0:01:58]} 20. Nd6+ {[%clk 0:00:21]}  Kf8 {[%clk 0:01:57]} 21. Qa4 {[%clk 0:00:18]}  Bxe1 {[%clk 0:01:57]} 0-1


[Site "https://www.chess.com"]

[Event "Titled Tuesday Blitz October 04 Early 2022"]
[White "Svane, Frederik"]
[Black "Bortnyk, Mykola"]
[WhiteFideId "12923044"]
[BlackFideId "14120836"]
[WhiteElo "2466"]
[BlackElo "2582"]
[Result "0-1"]
[Round "10"]
[TimeControl "180+1"]
[Date "2022.10.04"]
[WhiteClock "0:00:02"]
[BlackClock "0:00:36"]

1. e3 {[%clk 0:03:00]}  d5 {[%clk 0:02:56]} 2. b3 {[%clk 0:03:00]}  e5 {[%clk 0:02:54]} 3. Bb2 {[%clk 0:03:01]}  Bd6 {[%clk 0:02:50]} 4. c4 {[%clk 0:02:55]}  c6 {[%clk 0:02:47]} 5. Nf3 {[%clk 0:02:49]}  Qe7 {[%clk 0:02:44]} 6. cxd5 {[%clk 0:02:45]}  cxd5 {[%clk 0:02:45]} 7. Nc3 {[%clk 0:02:45]}  Nf6 {[%clk 0:02:38]} 8. Nb5 {[%clk 0:02:46]}  Nc6 {[%clk 0:02:38]} 9. Nxd6+ {[%clk 0:02:41]}  Qxd6 {[%clk 0:02:39]} 10. Bb5 {[%clk 0:02:42]}  e4 {[%clk 0:02:33]} 11. Nd4 {[%clk 0:02:35]}  O-O {[%clk 0:02:33]} 12. Bxc6 {[%clk 0:02:28]}  bxc6 {[%clk 0:02:34]} 13. Rc1 {[%clk 0:02:28]}  Bd7 {[%clk 0:02:25]} 14. Qc2 {[%clk 0:02:25]}  Ng4 {[%clk 0:02:19]} 15. d3 {[%clk 0:02:12]}  f5 {[%clk 0:02:06]} 16. Qc3 {[%clk 0:01:41]}  Rf7 {[%clk 0:01:53]} 17. Ne2 {[%clk 0:01:30]}  Re8 {[%clk 0:01:43]} 18. Qc5 {[%clk 0:01:21]}  Qxc5 {[%clk 0:01:36]} 19. Rxc5 {[%clk 0:01:20]}  exd3 {[%clk 0:01:37]} 20. Nf4 {[%clk 0:01:17]}  d2+ {[%clk 0:01:35]} 21. Ke2 {[%clk 0:01:16]}  g5 {[%clk 0:01:34]} 22. Nd3 {[%clk 0:01:04]}  f4 {[%clk 0:01:30]} 23. h3 {[%clk 0:01:04]}  fxe3 {[%clk 0:01:24]} 24. f3 {[%clk 0:00:58]}  Nh6 {[%clk 0:00:55]} 25. g4 {[%clk 0:00:45]}  Rfe7 {[%clk 0:00:49]} 26. Bf6 {[%clk 0:00:42]}  Re6 {[%clk 0:00:47]} 27. Bxg5 {[%clk 0:00:42]}  Bc8 {[%clk 0:00:47]} 28. Ra5 {[%clk 0:00:34]}  Nf7 {[%clk 0:00:48]} 29. Bf4 {[%clk 0:00:34]}  d4 {[%clk 0:00:43]} 30. h4 {[%clk 0:00:30]}  c5 {[%clk 0:00:40]} 31. Nxc5 {[%clk 0:00:17]}  Rf6 {[%clk 0:00:41]} 32. Nd3 {[%clk 0:00:15]}  Ba6 {[%clk 0:00:38]} 33. Bg3 {[%clk 0:00:01]}  Bxd3+ {[%clk 0:00:38]} 34. Kxd3 {[%clk 0:00:02]}  Rxf3 {[%clk 0:00:38]} 35. Bd6 {[%clk 0:00:01]}  Nxd6 {[%clk 0:00:36]} 36. Ke2 {[%clk 0:00:01]}  Rf2+ {[%clk 0:00:36]} 37. Kd1 {[%clk 0:00:02]}  e2+ {[%clk 0:00:36]} 38. Kc2 {[%clk 0:00:02]} 0-1


[Site "https://www.chess.com"]

[Event "Titled Tuesday Blitz October 04 Early 2022"]
[White "Svane, Rasmus"]
[Black "Ohanyan, Emin"]
[WhiteFideId "4657101"]
[BlackFideId "13312022"]
[WhiteElo "2674"]
[BlackElo "2302"]
[Result "1-0"]
[Round "10"]
[TimeControl "180+1"]
[Date "2022.10.04"]
[WhiteClock "0:00:33"]
[BlackClock "0:00:05"]

1. Nf3 {[%clk 0:02:57]}  d5 {[%clk 0:03:00]} 2. g3 {[%clk 0:02:57]}  Nf6 {[%clk 0:02:55]} 3. Bg2 {[%clk 0:02:57]}  g6 {[%clk 0:02:56]} 4. c4 {[%clk 0:02:55]}  c6 {[%clk 0:02:55]} 5. Qb3 {[%clk 0:02:55]}  Bg7 {[%clk 0:02:46]} 6. d4 {[%clk 0:02:56]}  O-O {[%clk 0:02:45]} 7. Nc3 {[%clk 0:02:56]}  dxc4 {[%clk 0:02:14]} 8. Qxc4 {[%clk 0:02:56]}  b5 {[%clk 0:02:15]} 9. Qd3 {[%clk 0:02:46]}  b4 {[%clk 0:02:09]} 10. Na4 {[%clk 0:02:44]}  Qa5 {[%clk 0:02:02]} 11. b3 {[%clk 0:02:38]}  Nbd7 {[%clk 0:02:02]} 12. Qc2 {[%clk 0:01:55]}  Ba6 {[%clk 0:01:34]} 13. Bb2 {[%clk 0:01:55]}  Rac8 {[%clk 0:01:32]} 14. Rc1 {[%clk 0:01:53]}  Bb5 {[%clk 0:01:21]} 15. Nc5 {[%clk 0:01:45]}  Nxc5 {[%clk 0:01:02]} 16. dxc5 {[%clk 0:01:46]}  Nd5 {[%clk 0:00:54]} 17. Nd4 {[%clk 0:00:55]}  Nc3 {[%clk 0:00:33]} 18. Bxc3 {[%clk 0:00:54]}  bxc3 {[%clk 0:00:33]} 19. e3 {[%clk 0:00:37]}  Bxd4 {[%clk 0:00:30]} 20. exd4 {[%clk 0:00:37]}  Rfd8 {[%clk 0:00:23]} 21. a4 {[%clk 0:00:37]}  Ba6 {[%clk 0:00:18]} 22. Qxc3 {[%clk 0:00:37]}  Qxc3+ {[%clk 0:00:18]} 23. Rxc3 {[%clk 0:00:38]}  Rxd4 {[%clk 0:00:19]} 24. Bf1 {[%clk 0:00:39]}  Rcd8 {[%clk 0:00:10]} 25. Be2 {[%clk 0:00:39]}  Rd2 {[%clk 0:00:08]} 26. Bxa6 {[%clk 0:00:31]}  Rd1+ {[%clk 0:00:08]} 27. Ke2 {[%clk 0:00:32]}  Rxh1 {[%clk 0:00:09]} 28. Bb7 {[%clk 0:00:33]}  Rd7 {[%clk 0:00:06]} 29. Bxc6 {[%clk 0:00:33]}  Rc7 {[%clk 0:00:06]} 30. Bxh1 {[%clk 0:00:33]}  Rxc5 {[%clk 0:00:05]} 31. Rxc5 {[%clk 0:00:33]} 1-0


[Site "https://www.chess.com"]